bitfinex/quotes_BTCUSD_20250218
["timestamp","ask_amount","ask_price","bid_price","bid_amount"]
[1739862225359,0.0001702,95577.0,95572.0,0.10250365]
[1739862232005,0.1571112,95577.0,95572.0,0.10250365]
[1739862232187,0.0001702,95577.0,95572.0,0.10250365]
[1739862232412,0.1571122,95577.0,95572.0,0.10250365]
[1739862232587,0.0001702,95577.0,95572.0,0.10250365]
[1739862233304,0.156943,95576.0,95572.0,0.10250365]
[1739862233952,0.0001702,95577.0,95572.0,0.10250365]
[1739862234588,0.1571112,95577.0,95572.0,0.10250365]
[1739862234797,0.0001702,95577.0,95572.0,0.10250365]
[1739862236479,0.0001702,95577.0,95572.0,0.10284405]
[1739862237107,0.1571112,95577.0,95572.0,0.10284405]
[1739862237589,0.0001702,95577.0,95572.0,0.10284405]
[1739862244388,0.15,95576.0,95572.0,0.10284405]
[1739862246039,0.0001702,95577.0,95572.0,0.10284405]
[1739862249218,0.0001702,95577.0,95576.0,0.005595]
[1739862249656,0.0001702,95577.0,95576.0,0.23439865]
[1739862250083,0.0001702,95577.0,95576.0,0.79653211]
[1739862250298,0.0001702,95580.0,95579.0,0.156938]
[1739862250508,0.000341,95604.0,95601.0,0.156902]
[1739862250727,0.000341,95604.0,95601.0,0.38200565]
[1739862250950,0.00040545,95602.0,95601.0,0.38200565]
[1739862251402,0.00040545,95602.0,95601.0,0.3263758]
[1739862251655,0.000341,95604.0,95601.0,0.3263758]
[1739862251656,0.000341,95604.0,95602.0,0.09639518]
[1739862251897,0.0003406,95605.0,95603.0,0.35959334]
[1739862252210,0.0276822,95645.0,95603.0,0.35959334]
[1739862252211,0.004191,95667.0,95608.0,0.02]
[1739862252452,0.156809,95658.0,95632.0,0.10250365]
[1739862252709,6.484e-05,95659.0,95633.0,0.3285]
[1739862252710,0.156818,95652.0,95633.0,0.3285]
[1739862252952,0.15,95654.0,95640.0,0.156837]
[1739862253192,0.15,95655.0,95641.0,0.25933865]
[1739862253407,0.15,95655.0,95642.0,0.156833]
[1739862253611,0.15,95655.0,95643.0,0.10250365]
[1739862253819,0.156816,95654.0,95643.0,0.10250365]
[1739862254265,0.156823,95650.0,95643.0,0.10250365]
[1739862254476,0.15,95652.0,95643.0,0.10250365]
[1739862254859,0.17790487,95652.0,95643.0,0.10250365]
[1739862255071,0.33472387,95652.0,95644.0,0.01787036]
[1739862255277,0.209093,95651.0,95645.0,0.10250365]
[1739862255457,0.156821,95650.0,95645.0,0.10250365]
[1739862255867,0.02790487,95652.0,95645.0,0.10250365]
[1739862256116,0.15,95655.0,95645.0,0.10250365]
[1739862256263,0.1537609,95657.0,95646.0,0.01025037]
[1739862256482,0.01638112,95666.0,95647.0,0.10354906]
[1739862256687,0.02742105,95660.0,95650.0,0.15682]
[1739862257073,0.02742105,95660.0,95651.0,0.10250365]
[1739862257282,0.02742105,95660.0,95652.0,0.02485897]
[1739862257384,0.02742105,95660.0,95652.0,0.12736262]
[1739862257811,0.02742105,95660.0,95652.0,0.10250365]
[1739862258254,0.22544212,95666.0,95653.0,0.10250365]
[1739862258466,0.209037,95677.0,95657.0,0.156809]
[1739862258667,0.156787,95671.0,95658.0,0.10250365]
[1739862258879,0.1205021,95680.0,95658.0,0.10250365]
[1739862259098,0.209046,95673.0,95658.0,0.10250365]
[1739862259285,0.156792,95668.0,95658.0,0.10250365]
[1739862259483,0.209051,95671.0,95658.0,0.10250365]
[1739862259735,0.02745701,95664.0,95658.0,0.10250365]
[1739862260153,0.0001702,95676.0,95658.0,0.10354896]
[1739862260367,0.156783,95674.0,95658.0,0.18300365]
[1739862260571,0.156784,95673.0,95658.0,0.18600365]
[1739862260780,0.02718507,95672.0,95658.0,0.17900365]
[1739862260957,0.00023504,95659.0,95658.0,0.18004891]
[1739862261112,0.00023504,95659.0,95658.0,0.18704891]
[1739862261315,0.00023504,95659.0,95658.0,0.18404891]
[1739862261748,0.00023504,95659.0,95658.0,0.18804891]
[1739862261956,0.00023504,95659.0,95658.0,0.51654891]
[1739862262158,0.00023504,95659.0,95658.0,0.51550365]
[1739862262357,0.00023504,95659.0,95658.0,0.51150365]
[1739862262782,0.00023504,95659.0,95658.0,0.66650365]
[1739862262956,0.00023504,95659.0,95658.0,0.71340365]
[1739862263160,0.00023504,95659.0,95658.0,0.70440365]
[1739862263568,0.00023504,95659.0,95658.0,0.74140365]
[1739862263764,0.00023504,95659.0,95658.0,0.73440365]
[1739862263965,0.00023504,95659.0,95658.0,0.72740365]
[1739862264174,0.00023504,95659.0,95658.0,0.73440365]
[1739862264468,0.00023504,95659.0,95658.0,0.74140365]
[1739862265038,0.00023504,95659.0,95658.0,1.30020365]
[1739862265242,0.0001702,95676.0,95675.0,0.30678]
[1739862265451,0.00061287,95676.0,95675.0,0.86808365]
[1739862266923,0.00061287,95676.0,95675.0,0.87508365]
[1739862267197,0.00061287,95676.0,95675.0,0.72508365]
[1739862267365,0.00061287,95676.0,95675.0,0.73208365]
[1739862269350,0.00061287,95676.0,95675.0,0.57530365]
[1739862269557,0.00061287,95676.0,95675.0,0.60178365]
[1739862271221,0.00061287,95676.0,95675.0,0.44500365]
[1739862271456,0.00061287,95676.0,95675.0,0.60178365]
[1739862271853,0.00061287,95676.0,95675.0,0.44500365]
[1739862272058,0.00061287,95676.0,95675.0,0.60178365]
[1739862272232,0.00061287,95676.0,95675.0,0.44500365]
[1739862273036,0.00061287,95676.0,95675.0,0.60178365]
[1739862273243,0.00061287,95676.0,95675.0,0.58778365]
[1739862273450,0.00061287,95676.0,95675.0,0.60178365]
[1739862274835,0.00061287,95676.0,95675.0,0.59478365]
[1739862275243,0.00061287,95676.0,95675.0,0.58778365]
[1739862275443,0.00061287,95676.0,95675.0,0.59478365]
[1739862276497,0.00061287,95676.0,95675.0,0.67108365]
[1739862276699,0.00061287,95676.0,95675.0,0.66408365]
[1739862276855,0.00061287,95676.0,95675.0,0.67808365]
[1739862277053,0.00061287,95676.0,95675.0,0.67108365]
[1739862277466,0.00061287,95676.0,95675.0,0.67808365]
[1739862278291,0.00061287,95676.0,95675.0,0.67108365]
[1739862278492,0.00061287,95676.0,95675.0,0.67808365]
[1739862280629,0.00061287,95676.0,95675.0,0.67108365]
[1739862280836,0.00061287,95676.0,95675.0,0.71798365]
[1739862281036,0.00061287,95676.0,95675.0,0.72498365]
[1739862281410,1e-06,95689.0,95688.0,0.179759]
[1739862281736,0.00013372,95689.0,95688.0,1.37630732]
[1739862281989,0.00013372,95689.0,95688.0,1.37526265]
[1739862282467,0.00013372,95689.0,95688.0,1.35226265]
[1739862282676,0.00013372,95689.0,95688.0,1.35926265]
[1739862282880,0.00013372,95689.0,95688.0,1.36626265]
[1739862283115,0.00013372,95689.0,95688.0,1.35926265]
[1739862283300,0.00013372,95689.0,95688.0,1.36626265]
[1739862284713,0.00013372,95689.0,95688.0,0.11650365]
[1739862285087,0.00013372,95689.0,95688.0,0.014]
[1739862285088,0.55428966,95689.0,95688.0,0.014]
[1739862285292,0.39830472,95689.0,95688.0,0.014]
[1739862285500,0.28436947,95689.0,95688.0,0.014]
[1739862285717,0.28436947,95689.0,95688.0,0.007]
[1739862286121,0.44887847,95689.0,95688.0,0.007]
[1739862286502,0.44887847,95689.0,95683.0,0.09388334]
[1739862286503,0.156766,95684.0,95683.0,0.09388334]
[1739862287017,0.16180746,95684.0,95683.0,0.09388334]
[1739862287364,0.00504146,95684.0,95659.0,0.0003402]
[1739862287576,0.156784,95673.0,95660.0,0.10250365]
[1739862287927,0.00501112,95672.0,95661.0,0.209071]
[1739862288113,0.00501112,95672.0,95671.0,0.156787]
[1739862288264,0.00113372,95689.0,95687.0,0.15676]
[1739862288265,0.00013372,95689.0,95687.0,0.15676]
[1739862288453,0.00013372,95689.0,95688.0,0.11817965]
[1739862291156,0.00013372,95689.0,95688.0,0.12117965]
[1739862291305,0.00013372,95689.0,95688.0,0.12317965]
[1739862294243,0.00013372,95689.0,95688.0,0.11817965]
[1739862294485,0.00013372,95689.0,95688.0,0.12517965]
[1739862294683,0.00013372,95689.0,95688.0,0.12217965]
[1739862294860,0.00013372,95689.0,95688.0,0.12717965]
[1739862295245,0.00013372,95689.0,95688.0,0.12751965]
[1739862295443,0.00030372,95689.0,95688.0,0.12351965]
[1739862295648,0.00030372,95689.0,95688.0,0.61582363]
[1739862295850,0.00030372,95689.0,95688.0,0.61477865]
[1739862297213,0.00030372,95689.0,95688.0,0.60377865]
[1739862297428,0.00030372,95689.0,95688.0,0.61777865]
[1739862297675,0.00030372,95689.0,95688.0,0.61077865]
[1739862297877,0.00030372,95689.0,95688.0,0.60377865]
[1739862298079,0.00030372,95689.0,95688.0,0.61077865]
[1739862298289,0.00030372,95689.0,95688.0,0.61777865]
[1739862305347,0.00030372,95689.0,95688.0,0.46101965]
[1739862306629,0.00030372,95689.0,95688.0,0.44534365]
[1739862307841,0.00030372,95689.0,95688.0,0.45093865]
[1739862310997,0.00030372,95689.0,95688.0,0.12243865]
[1739862311773,0.00014672,95689.0,95688.0,0.12243865]
[1739862314766,0.156743,95698.0,95695.0,0.00544828]
[1739862314973,0.0819,95705.0,95696.0,0.01622023]
[1739862315200,0.0819,95705.0,95695.0,0.00544828]
[1739862316069,0.0819,95705.0,95695.0,0.16219528]
[1739862316286,0.156737,95702.0,95695.0,0.00544828]
[1739862316704,0.0819,95705.0,95695.0,0.00544828]
[1739862316910,0.156742,95699.0,95695.0,0.00544828]
[1739862317113,0.156742,95699.0,95696.0,0.01622003]
[1739862317321,0.156742,95699.0,95696.0,0.02022003]
[1739862317531,0.156739,95701.0,95696.0,0.01622003]
[1739862317735,0.156738,95701.0,95695.0,0.00544828]
[1739862317947,0.0819,95705.0,95695.0,0.01044828]
[1739862318153,0.15674,95700.0,95695.0,0.01044828]
[1739862318567,0.00017,95702.0,95695.0,0.00944828]
[1739862318772,0.156741,95699.0,95696.0,0.007]
[1739862318976,0.15674,95700.0,95696.0,0.007]
[1739862319180,0.156742,95699.0,95696.0,0.007]
[1739862319936,0.156744,95698.0,95696.0,0.007]
[1739862320363,0.208984,95701.0,95696.0,0.007]
[1739862320559,0.156743,95698.0,95695.0,0.00844828]
[1739862320762,0.208984,95701.0,95695.0,0.00844828]
[1739862320946,0.156745,95697.0,95695.0,0.01044828]
[1739862321150,0.156743,95698.0,95696.0,0.005]
[1739862321564,0.156745,95697.0,95696.0,0.005]
[1739862322357,0.156745,95697.0,95695.0,0.00544828]
[1739862322536,0.156745,95697.0,95696.0,0.011]
[1739862323695,0.156745,95697.0,95696.0,0.005]
[1739862323902,0.858527,95697.0,95696.0,0.008]
[1739862324105,0.858527,95697.0,95696.0,0.003]
[1739862324621,0.858527,95697.0,95696.0,0.005]
[1739862324829,0.701782,95697.0,95695.0,0.00544828]
[1739862325026,0.847809,95696.0,95695.0,0.00544828]
[1739862325435,0.825389,95696.0,95695.0,0.00544828]
[1739862325640,0.975389,95696.0,95695.0,0.00544828]
[1739862326308,0.740974,95696.0,95695.0,0.00544828]
[1739862327825,0.740974,95696.0,95695.0,0.00844828]
[1739862327977,0.740974,95696.0,95695.0,0.01144828]
[1739862329609,0.789774,95696.0,95695.0,0.01144828]
[1739862330251,0.355546,95696.0,95695.0,0.01144828]
[1739862330460,0.476101,95696.0,95695.0,0.00844828]
[1739862330669,0.355546,95696.0,95695.0,0.00544828]
[1739862330882,0.4761,95696.0,95695.0,0.00844828]
[1739862331301,0.4761,95696.0,95695.0,0.00644828]
[1739862331507,0.4761,95696.0,95695.0,0.00844828]
[1739862331747,0.48442085,95696.0,95695.0,0.00844828]
[1739862334143,0.48442085,95696.0,95695.0,0.00744828]
[1739862334386,0.48442085,95696.0,95695.0,0.00544828]
[1739862334590,0.48442085,95696.0,95695.0,0.00644828]
[1739862334815,0.48442085,95696.0,95695.0,0.00844828]
[1739862335019,0.58273364,95696.0,95695.0,0.00844828]
[1739862335229,0.58273364,95696.0,95695.0,0.00544828]
[1739862335648,0.59910729,95696.0,95695.0,0.00644828]
[1739862336610,0.59910729,95696.0,95695.0,0.00844828]
[1739862337030,0.59910729,95696.0,95695.0,0.00544828]
[1739862337310,0.70459129,95696.0,95695.0,0.00844828]
[1739862340635,0.809422,95696.0,95695.0,0.00844828]
[1739862341257,0.809422,95696.0,95695.0,0.00644828]
[1739862341469,0.809422,95696.0,95695.0,2.8e-07]
[1739862341680,0.382856,95690.0,95689.0,0.00034]
[1739862341791,2.75715263,95690.0,95689.0,0.00034]
[1739862341999,3.69622853,95690.0,95689.0,0.00034]
[1739862342205,3.00485624,95690.0,95689.0,0.00034]
[1739862343066,2.60541024,95690.0,95689.0,0.00034]
[1739862343271,2.70791389,95690.0,95689.0,0.00034]
[1739862344254,2.68318389,95690.0,95689.0,0.00034]
[1739862345862,2.60211991,95690.0,95689.0,0.00034]
[1739862350335,2.49961626,95690.0,95689.0,0.00034]
[1739862350547,0.17467692,95690.0,95689.0,0.00034]
[1739862350790,0.33243292,95690.0,95689.0,0.00034]
[1739862350997,0.18243292,95690.0,95689.0,0.00034]
[1739862351638,0.33143292,95690.0,95689.0,0.00034]
[1739862352067,0.3341454,95690.0,95689.0,0.00034]
[1739862352491,0.3341454,95690.0,95689.0,0.00234]
[1739862353567,0.33373025,95690.0,95689.0,0.00534]
[1739862355253,0.31735423,95690.0,95689.0,0.00534]
[1739862358027,0.44333723,95690.0,95689.0,0.00534]
[1739862358224,0.41897223,95690.0,95689.0,0.00534]
[1739862358822,0.44032707,95690.0,95689.0,0.00534]
[1739862359038,0.31735423,95690.0,95689.0,0.00534]
[1739862362706,0.01184895,95690.0,95689.0,0.00534]
[1739862362932,0.16722106,95690.0,95689.0,0.00534]
[1739862366152,0.01046506,95690.0,95689.0,0.241997]
[1739862366361,0.00721499,95690.0,95689.0,0.39380065]
[1739862366793,0.00721499,95690.0,95689.0,0.54380065]
[1739862367224,0.00721499,95690.0,95689.0,0.54080065]
[1739862367439,0.00738529,95690.0,95689.0,0.54180065]
[1739862367649,0.00738529,95690.0,95689.0,0.54380065]
[1739862368069,0.00738529,95690.0,95689.0,0.54180065]
[1739862368506,0.19798128,95722.0,95690.0,0.274]
[1739862368715,4.422e-05,95712.0,95706.0,0.124]
[1739862368920,4.422e-05,95712.0,95707.0,0.10250365]
[1739862369555,0.156722,95711.0,95707.0,0.10250365]
[1739862369773,0.01004256,95710.0,95707.0,0.10250365]
[1739862370193,0.01004256,95710.0,95708.0,0.156726]
[1739862370415,0.01004256,95710.0,95709.0,0.10250365]
[1739862370628,4.422e-05,95712.0,95709.0,0.10250365]
[1739862370877,0.01005969,95710.0,95709.0,0.10250365]
[1739862371129,4.422e-05,95712.0,95709.0,0.10250365]
[1739862371611,0.16678348,95711.0,95709.0,0.10250365]
[1739862371852,0.01006148,95711.0,95709.0,0.10250365]
[1739862373553,0.01006148,95711.0,95709.0,0.10650365]
[1739862373764,0.01006148,95711.0,95709.0,0.10850365]
[1739862374045,0.01006148,95711.0,95709.0,0.10650365]
[1739862374309,0.16678348,95711.0,95709.0,0.007]
[1739862377965,0.16678348,95711.0,95709.0,0.004]
[1739862378375,0.16678348,95711.0,95709.0,0.006]
[1739862378585,0.351249,95710.0,95709.0,0.006]
[1739862378790,0.351249,95710.0,95709.0,0.002]
[1739862378994,0.35673485,95710.0,95709.0,0.002]
[1739862379216,0.50673485,95710.0,95709.0,0.004]
[1739862379448,0.61793804,95710.0,95709.0,0.004]
[1739862379631,0.61793804,95710.0,95709.0,0.002]
[1739862380250,0.61793804,95710.0,95709.0,0.003]
[1739862380457,0.61793804,95710.0,95709.0,0.001]
[1739862380659,0.61793804,95710.0,95689.0,0.00034]
[1739862380660,0.156756,95690.0,95689.0,0.00034]
[1739862381078,0.16218812,95690.0,95689.0,0.00034]
[1739862381651,0.16683768,95690.0,95689.0,0.00034]
[1739862381861,0.16683768,95690.0,95689.0,0.00734]
[1739862382539,0.16683768,95690.0,95689.0,0.01434]
[1739862382739,0.31683768,95690.0,95689.0,0.01434]
[1739862382892,1.18156068,95690.0,95689.0,0.00734]
[1739862383304,1.18156068,95690.0,95689.0,0.00334]
[1739862383518,1.238458,95690.0,95689.0,0.00534]
[1739862384332,1.238458,95690.0,95689.0,0.00334]
[1739862384722,1.18156068,95690.0,95689.0,0.00334]
[1739862385697,0.65391968,95690.0,95689.0,0.00034]
[1739862386453,0.78473131,95690.0,95689.0,0.00034]
[1739862386869,0.80773131,95690.0,95689.0,0.00034]
[1739862387599,0.306805,95660.0,95659.0,0.0003402]
[1739862387841,0.409846,95660.0,95659.0,0.0003402]
[1739862388079,0.420453,95660.0,95659.0,0.0003402]
[1739862388304,0.44126654,95660.0,95659.0,0.0003402]
[1739862388548,1.13105954,95660.0,95659.0,0.0003402]
[1739862388780,1.54749054,95660.0,95659.0,0.0023402]
[1739862388998,0.86490273,95660.0,95659.0,0.0023402]
[1739862389200,0.86490273,95660.0,95659.0,0.0003402]
[1739862389613,0.86490273,95660.0,95659.0,0.0023402]
[1739862390231,0.82902388,95660.0,95659.0,0.0003402]
[1739862390437,0.82902388,95660.0,95659.0,0.0013402]
[1739862390812,0.82902388,95660.0,95659.0,0.0023402]
[1739862391014,0.82826388,95660.0,95659.0,0.0013402]
[1739862391214,0.82826388,95660.0,95659.0,0.0023402]
[1739862391749,0.82826388,95660.0,95659.0,0.0013402]
[1739862392538,0.82826388,95660.0,95659.0,0.0003402]
[1739862392741,0.82826388,95660.0,95659.0,0.0013402]
[1739862392934,0.47944288,95660.0,95659.0,0.0013402]
[1739862393138,0.30163088,95660.0,95659.0,0.0013402]
[1739862393356,0.18146473,95660.0,95659.0,0.0013402]
[1739862393787,0.18146473,95660.0,95659.0,0.0003402]
[1739862394231,0.03146473,95660.0,95659.0,0.0003402]
[1739862394908,4.419e-05,95660.0,95659.0,0.16593022]
[1739862395113,4.419e-05,95660.0,95659.0,0.26843387]
[1739862395322,4.419e-05,95660.0,95659.0,0.31613387]
[1739862395750,4.419e-05,95660.0,95659.0,0.31813387]
[1739862395985,4.419e-05,95660.0,95659.0,0.0510402]
[1739862396469,0.01061854,95660.0,95659.0,0.0510402]
[1739862396900,0.01061854,95660.0,95659.0,0.0033402]
[1739862397328,0.16061854,95660.0,95659.0,0.0033402]
[1739862398116,1.02822154,95660.0,95659.0,0.0033402]
[1739862398869,0.16061854,95660.0,95659.0,0.0033402]
[1739862399143,0.26821254,95660.0,95659.0,0.0033402]
[1739862399393,0.27127354,95660.0,95659.0,0.0033402]
[1739862399615,0.27553054,95660.0,95659.0,0.0033402]
[1739862399841,0.28234254,95660.0,95659.0,0.0033402]
[1739862400087,0.16061854,95660.0,95659.0,0.0033402]
[1739862401519,0.33875254,95660.0,95659.0,0.0033402]
[1739862402446,0.33892284,95660.0,95659.0,0.0033402]
[1739862402698,0.51249083,95660.0,95659.0,0.0033402]
[1739862402970,0.41692284,95660.0,95659.0,0.0033402]
[1739862403218,0.33892284,95660.0,95659.0,0.0033402]
[1739862403706,0.33892284,95660.0,95659.0,0.0023402]
[1739862403944,0.33892284,95660.0,95659.0,0.0003402]
[1739862404939,0.07101315,95660.0,95659.0,0.0003402]
[1739862407111,0.22101315,95660.0,95659.0,0.0003402]
[1739862407338,0.3235168,95660.0,95659.0,0.0003402]
[1739862407580,0.22101315,95660.0,95659.0,0.0003402]
[1739862407860,0.65716348,95660.0,95659.0,0.0003402]
[1739862408109,0.85716348,95660.0,95659.0,0.0003402]
[1739862408632,1.01396848,95660.0,95659.0,0.0003402]
[1739862408913,0.306828,95646.0,95622.0,0.0475]
[1739862409230,2.262559,95646.0,95622.0,0.0475]
[1739862409466,2.37668913,95646.0,95622.0,0.0475]
[1739862411004,0.31153413,95646.0,95637.0,0.0764]
[1739862411221,0.16153413,95646.0,95637.0,0.0764]
[1739862411889,0.16253413,95646.0,95637.0,0.0764]
[1739862412298,0.16153413,95646.0,95637.0,0.0764]
[1739862412499,0.16558763,95646.0,95637.0,0.0764]
[1739862412845,0.16658763,95646.0,95637.0,0.0764]
[1739862413263,0.16758763,95646.0,95637.0,0.0764]
[1739862416136,0.1641277,95646.0,95637.0,0.0764]
[1739862417318,0.0072997,95646.0,95645.0,0.0488402]
[1739862417531,0.156825,95648.0,95645.0,0.0488402]
[1739862417741,0.00730168,95646.0,95645.0,0.0488402]
[1739862417938,0.156826,95647.0,95645.0,0.0488402]
[1739862418186,0.00730168,95646.0,95645.0,0.0488402]
[1739862419118,0.001,95648.0,95645.0,0.0488402]
[1739862419376,0.156818,95652.0,95645.0,0.0488402]
[1739862419543,0.00732842,95647.0,95645.0,0.0488402]
[1739862419768,0.156827,95647.0,95645.0,0.0488402]
[1739862420089,0.00732663,95646.0,95645.0,0.0488402]
[1739862421508,0.00732663,95646.0,95645.0,0.0498402]
[1739862421715,0.00732663,95646.0,95645.0,0.0488402]
[1739862422303,0.00732663,95646.0,95645.0,0.0508402]
[1739862423231,0.00732663,95646.0,95645.0,0.0528402]
[1739862423602,0.00550062,95646.0,95645.0,0.0528402]
[1739862424153,0.15681,95658.0,95646.0,0.0796]
[1739862424376,0.0001703,95660.0,95651.0,0.156819]
[1739862424571,0.0001703,95660.0,95657.0,0.156809]
[1739862424777,0.0001703,95660.0,95652.0,0.10250365]
[1739862424778,0.0001703,95660.0,95658.0,0.156808]
[1739862425216,0.0001703,95660.0,95659.0,0.15130365]
[1739862425421,0.0001703,95660.0,95659.0,0.22974892]
[1739862425629,0.0001703,95660.0,95659.0,0.22870365]
[1739862426042,0.0001703,95660.0,95659.0,0.22770365]
[1739862426674,0.0001703,95660.0,95659.0,0.22570365]
[1739862427517,0.0001703,95660.0,95659.0,0.23670365]
[1739862428060,0.0001703,95660.0,95659.0,0.23270365]
[1739862428300,0.0001703,95660.0,95659.0,0.23970365]
[1739862434821,0.1469533,95674.0,95664.0,0.156797]
[1739862435002,0.156786,95672.0,95665.0,0.10250365]
[1739862435201,0.156789,95670.0,95665.0,0.10250365]
[1739862435388,0.156795,95667.0,95664.0,0.00044267]
[1739862435584,0.156796,95666.0,95664.0,0.00044267]
[1739862436040,0.15,95665.0,95664.0,0.00444267]
[1739862436239,0.36107182,95665.0,95664.0,0.00444267]
[1739862436443,0.326615,95665.0,95664.0,0.00444267]
[1739862437091,0.326615,95665.0,95664.0,0.00844267]
[1739862437459,0.326615,95665.0,95664.0,0.00444267]
[1739862437822,0.15,95665.0,95664.0,0.00044267]
[1739862438023,0.875112,95665.0,95664.0,0.00044267]
[1739862438222,0.876112,95665.0,95664.0,0.00744267]
[1739862438593,0.721279,95665.0,95664.0,0.00044267]
[1739862438792,0.72487229,95665.0,95664.0,0.00044267]
[1739862439002,0.29779429,95665.0,95664.0,0.00044267]
[1739862440276,0.29679429,95665.0,95664.0,0.00044267]
[1739862440690,0.29779429,95665.0,95664.0,0.00044267]
[1739862440901,0.29679429,95665.0,95664.0,0.00044267]
[1739862441720,0.3005866,95665.0,95664.0,0.00044267]
[1739862442262,0.40309025,95665.0,95664.0,0.00044267]
[1739862442376,0.38776373,95665.0,95664.0,0.00044267]
[1739862442583,0.43756373,95665.0,95664.0,0.00044267]
[1739862442789,0.46056373,95665.0,95664.0,0.00044267]
[1739862443679,0.86796373,95665.0,95664.0,0.00044267]
[1739862443886,0.97046738,95665.0,95664.0,0.00044267]
[1739862444330,0.97146738,95665.0,95664.0,0.00044267]
[1739862444536,0.97046738,95665.0,95664.0,0.00044267]
[1739862444955,0.97246738,95665.0,95664.0,0.00044267]
[1739862445161,0.97046738,95665.0,95664.0,0.00044267]
[1739862445370,0.97246738,95665.0,95664.0,0.00044267]
[1739862445671,0.97046738,95665.0,95664.0,0.00044267]
[1739862446295,0.97046738,95665.0,95645.0,0.0003402]
[1739862446296,0.306828,95646.0,95645.0,0.0003402]
[1739862446815,0.31414821,95646.0,95645.0,0.0003402]
[1739862448028,0.31414821,95646.0,95645.0,0.0023402]
[1739862448742,0.31414821,95646.0,95645.0,0.0033402]
[1739862449224,0.31414821,95646.0,95645.0,0.0053402]
[1739862449662,0.46672623,95646.0,95645.0,0.0053402]
[1739862449923,1.11293623,95646.0,95645.0,0.0053402]
[1739862450135,0.72147121,95646.0,95645.0,0.0023402]
[1739862450383,0.65190621,95646.0,95645.0,0.0023402]
[1739862450658,0.31414821,95646.0,95645.0,0.0023402]
[1739862450921,0.16414821,95646.0,95645.0,0.0043402]
[1739862451143,0.16414821,95646.0,95645.0,0.0023402]
[1739862451666,0.16414821,95646.0,95645.0,0.0043402]
[1739862453652,0.16503686,95646.0,95645.0,0.0043402]
[1739862454289,0.16503686,95646.0,95645.0,0.0003402]
[1739862454497,0.16503686,95646.0,95645.0,0.0013402]
[1739862454649,0.16503686,95646.0,95645.0,0.0023402]
[1739862454854,0.23835985,95646.0,95645.0,0.0013402]
[1739862455129,0.47975986,95646.0,95645.0,0.0013402]
[1739862455421,0.60342986,95646.0,95645.0,0.0013402]
[1739862455846,0.31503686,95646.0,95645.0,0.0013402]
[1739862456390,0.31503686,95646.0,95645.0,0.0023402]
[1739862456803,0.31503686,95646.0,95645.0,0.0003402]
[1739862457000,0.31503686,95646.0,95645.0,0.0013402]
[1739862457644,0.15820886,95646.0,95645.0,0.0023402]
[1739862459212,0.15820886,95646.0,95645.0,2e-07]
[1739862459213,0.34274715,95646.0,95645.0,2e-07]
[1739862459417,0.156888,95610.0,95607.0,0.1261]
[1739862459659,0.15,95619.0,95607.0,0.1261]
[1739862459860,0.00846997,95609.0,95607.0,0.1261]
[1739862460064,0.15,95619.0,95607.0,0.1261]
[1739862460065,0.156888,95610.0,95607.0,0.1261]
[1739862460840,0.20917,95616.0,95607.0,0.12623272]
[1739862461060,0.156889,95609.0,95607.0,0.13223272]
[1739862461268,0.156889,95609.0,95607.0,0.13723272]
[1739862461874,0.17597419,95609.0,95607.0,0.13723272]
[1739862462455,0.17597419,95609.0,95607.0,0.13123272]
[1739862462858,0.00530799,95608.0,95607.0,0.13723272]
[1739862463266,0.00530799,95608.0,95607.0,0.04983272]
[1739862463512,0.00530799,95608.0,95607.0,0.05583272]
[1739862463665,0.00530799,95608.0,95607.0,0.06183272]
[1739862463888,0.00530799,95608.0,95607.0,0.05583272]
[1739862464064,0.00530799,95608.0,95607.0,0.04983272]
[1739862464261,0.00530799,95608.0,95607.0,0.06283272]
[1739862464864,0.15530799,95608.0,95607.0,0.01313272]
[1739862465567,0.15530799,95608.0,95607.0,0.00613272]
[1739862465898,0.15530799,95608.0,95607.0,0.01313272]
[1739862466103,0.15530799,95608.0,95607.0,0.00713272]
[1739862466297,0.15530799,95608.0,95607.0,0.01313272]
[1739862467070,0.00530799,95608.0,95607.0,0.01313272]
[1739862471956,0.00845278,95608.0,95607.0,0.01313272]
[1739862472180,0.00845278,95608.0,95607.0,0.01347332]
[1739862472865,0.23373148,95608.0,95607.0,0.01347332]
[1739862473297,0.23373148,95608.0,95607.0,0.00647332]
[1739862473734,0.15845278,95608.0,95607.0,0.00547332]
[1739862474170,0.15845278,95608.0,95607.0,0.00947332]
[1739862474801,0.15845278,95608.0,95607.0,0.00047332]
[1739862475013,0.78929578,95608.0,95607.0,0.00047332]
[1739862475194,0.85244843,95608.0,95607.0,0.00547332]
[1739862475638,0.85244843,95608.0,95607.0,0.00047332]
[1739862476073,0.94274159,95608.0,95607.0,0.00447332]
[1739862476283,0.94274159,95608.0,95607.0,0.00747332]
[1739862476496,0.94274159,95608.0,95607.0,0.00347332]
[1739862476702,0.96574159,95608.0,95607.0,0.00047332]
[1739862476918,0.97174159,95608.0,95607.0,0.00047332]
[1739862477720,0.96874159,95608.0,95607.0,0.00047332]
[1739862478017,0.97174159,95608.0,95607.0,0.00047332]
[1739862478190,0.96874159,95608.0,95607.0,0.00047332]
[1739862478401,0.97074159,95608.0,95607.0,0.00047332]
[1739862480298,1.29944159,95608.0,95607.0,0.00047332]
[1739862481135,0.70594959,95608.0,95607.0,0.00047332]
[1739862481346,2.45268859,95608.0,95607.0,0.00047332]
[1739862481558,2.35888259,95608.0,95607.0,0.00047332]
[1739862481761,2.04199259,95608.0,95607.0,0.00047332]
[1739862481983,0.33915278,95608.0,95607.0,0.00047332]
[1739862482211,0.34215278,95608.0,95607.0,0.00047332]
[1739862482421,0.01345278,95608.0,95607.0,0.00047332]
[1739862482631,0.01145278,95608.0,95607.0,0.00047332]
[1739862482841,0.01345278,95608.0,95607.0,0.00047332]
[1739862483048,0.16345278,95608.0,95607.0,0.00047332]
[1739862483685,0.16045278,95608.0,95607.0,0.00047332]
[1739862483907,0.16345278,95608.0,95607.0,0.00047332]
[1739862484112,0.16045278,95608.0,95607.0,0.00047332]
[1739862484509,0.15845278,95608.0,95607.0,0.00047332]
[1739862484718,0.00845278,95608.0,95607.0,0.00047332]
[1739862485117,0.00845278,95608.0,95607.0,0.15736532]
[1739862485345,0.00845278,95608.0,95607.0,0.34166897]
[1739862485578,0.01965653,95615.0,95607.0,0.18477697]
[1739862485785,0.01965653,95615.0,95613.0,0.15688]
[1739862485966,0.031442,95622.0,95619.0,0.0496]
[1739862486214,0.15,95625.0,95619.0,0.0496]
[1739862486444,0.031439,95623.0,95619.0,0.0496]
[1739862486722,0.031439,95623.0,95620.0,0.10250365]
[1739862486933,0.002887,95622.0,95620.0,0.18380365]
[1739862487139,0.002887,95622.0,95621.0,0.156869]
[1739862487344,0.181435,95638.0,95621.0,0.10250365]